fUSD/lending_fUSD_20250818
["ID","MTS","AMOUNT","RATE_DAILY","PERIOD"]
[380044388,1755501049140,-400.0,0.00013698,2]
[380044389,1755501049149,-400.0,0.00013698,2]
[380044390,1755501049159,-400.0,0.00013698,2]
[380044391,1755501049168,-400.0,0.00013698,2]
[380044392,1755501049178,-866.53,0.00013698,2]
[380044393,1755501049188,-400.0,0.00013698,2]
[380044394,1755501049197,-400.0,0.00013698,2]
[380044395,1755501049206,-400.0,0.00013698,2]
[380044396,1755501049215,-400.0,0.00013698,2]
[380044397,1755501049224,-400.0,0.00013698,2]
[380044398,1755501049234,-438.65696703,0.00013698,2]
[380044399,1755501049244,-314.40958738,0.00013698,2]
[380044400,1755501049254,-424.81,0.00013698,2]
[380044401,1755501049264,-2065.16,0.00013698,2]
[380044402,1755501049275,-400.0,0.00013698,2]
[380044403,1755501049284,-556.21,0.00013698,2]
[380044404,1755501049293,-684.85,0.00013698,2]
[380044405,1755501049303,-400.0,0.00013698,2]
[380044406,1755501049312,-1513.58,0.00013698,2]
[380044407,1755501049324,-400.0,0.00013698,2]
[380044408,1755501049334,-400.0,0.00013698,2]
[380044409,1755501049345,-400.0,0.00013698,2]
[380044410,1755501049354,-612.0,0.00013698,2]
[380044411,1755501049363,-400.0,0.00013698,2]
[380044412,1755501049372,-400.0,0.00013698,2]
[380044413,1755501049382,-400.0,0.00013698,2]
[380044414,1755501049392,-400.0,0.00013698,2]
[380044415,1755501049401,-1213.44,0.00013698,2]
[380044416,1755501049413,-400.0,0.00013698,2]
[380044417,1755501049428,-400.0,0.00013698,2]
[380044418,1755501049652,-1769.54,0.00013698,2]
[380044419,1755501049662,-647.03,0.00013698,2]
[380044420,1755501049671,-407.67395227,0.00013698,2]
[380044421,1755501049680,-705.11,0.00013698,2]
[380044422,1755501049689,-400.0,0.00013698,2]
[380044423,1755501049699,-500.0,0.00013698,2]
[380044424,1755501049708,-500.0,0.00013698,2]
[380044425,1755501049717,-400.0,0.00013698,2]
[380044426,1755501049726,-501.28910075,0.00013698,2]
[380044427,1755501049735,-400.0,0.00013698,2]
[380044428,1755501049744,-513.03,0.00013698,2]
[380044429,1755501049753,-400.0,0.00013698,2]
[380044430,1755501049763,-400.4230745,0.00013698,2]
[380044431,1755501049771,-400.0,0.00013698,2]
[380044432,1755501049781,-421.14,0.00013698,2]
[380044433,1755501049790,-400.0,0.00013698,2]
[380044434,1755501049799,-400.0,0.00013698,2]
[380044435,1755501049808,-402.23113298,0.00013698,2]
[380044436,1755501049817,-1144.86,0.00013698,2]
[380044437,1755501049829,-400.0,0.00013698,2]
[380044438,1755501049839,-718.89,0.00013698,2]
[380044439,1755501049849,-400.0,0.00013698,2]
[380044440,1755501049858,-1482.12,0.00013698,2]
[380044441,1755501049867,-401.34923233,0.00013698,2]
[380044442,1755501049876,-905.14,0.00013698,2]
[380044443,1755501049886,-541.1317576,0.00013698,2]
[380044444,1755501049896,-400.0,0.00013698,2]
[380044445,1755501049906,-615.37,0.00013698,2]
[380044446,1755501049916,-1498.6,0.00013698,2]
[380044447,1755501049926,-841.75,0.00013698,2]
[380044448,1755501049935,-400.0,0.00013698,2]
[380044449,1755501049944,-400.0,0.00013698,2]
[380044450,1755501049953,-1144.5,0.00013698,2]
[380044451,1755501049962,-400.0,0.00013698,2]
[380044452,1755501049972,-798.48,0.00013698,2]
[380044453,1755501049981,-580.68,0.00013698,2]
[380044454,1755501049991,-400.0,0.00013698,2]
[380044455,1755501050000,-204.09612849,0.00013698,2]
[380044456,1755501050009,-500.0,0.00013698,2]
[380044457,1755501050019,-500.0,0.00013698,2]
[380044458,1755501050028,-500.0,0.00013698,2]
[380044459,1755501050038,-400.0,0.00013698,2]
[380044460,1755501050047,-500.0,0.00013698,2]
[380044461,1755501050059,-500.0,0.00013698,2]
[380044462,1755501050069,-500.0,0.00013698,2]
[380044463,1755501050078,-401.79385251,0.00013698,2]
[380044464,1755501050089,-500.0,0.00013698,2]
[380044465,1755501050098,-230.90320559,0.00013698,2]
[380044466,1755501050108,-400.0,0.00013698,2]
[380044467,1755501050117,-363.42131767,0.00013698,2]
[380044468,1755501050127,-400.0,0.00013698,2]
[380044469,1755501050136,-400.0,0.00013698,2]
[380044470,1755501050145,-400.0,0.00013698,2]
[380044471,1755501050154,-400.0,0.00013698,2]
[380044472,1755501050163,-400.0,0.00013698,2]
[380044473,1755501050172,-400.0,0.00013698,2]
[380044474,1755501050181,-400.0,0.00013698,2]
[380044475,1755501050190,-834.95,0.00013698,2]
[380044476,1755501050199,-400.0,0.00013698,2]
[380044477,1755501050209,-400.0,0.00013698,2]
[380044478,1755501050218,-2442.88,0.00013698,2]
[380044479,1755501050227,-400.0,0.00013698,2]
[380044480,1755501050237,-948.8,0.00013698,2]
[380044481,1755501050247,-2194.54,0.00013698,2]
[380044482,1755501050257,-2194.54,0.00013698,2]
[380044483,1755501050268,-2194.54,0.00013698,2]
[380044484,1755501050277,-2194.54,0.00013698,2]
[380044485,1755501050287,-2194.54,0.00013698,2]
[380044486,1755501050296,-2194.54,0.00013698,2]
[380044487,1755501050306,-400.0,0.00013698,2]
[380044488,1755501050315,-2194.54,0.00013698,2]
[380044489,1755501050325,-2194.54,0.00013698,2]
[380044490,1755501050334,-514.51,0.00013698,2]
[380044491,1755501050344,-2194.54,0.00013698,2]
[380044492,1755501050353,-400.0,0.00013698,2]
[380044493,1755501050362,-2194.54,0.00013698,2]
[380044494,1755501050372,-2194.54,0.00013698,2]
[380044495,1755501050382,-2194.54,0.00013698,2]
[380044496,1755501050391,-2194.54,0.00013698,2]
[380044497,1755501050401,-2194.54,0.00013698,2]
[380044498,1755501050410,-2194.54,0.00013698,2]
[380044499,1755501050419,-2194.54,0.00013698,2]
[380044500,1755501050429,-2194.54,0.00013698,2]
[380044501,1755501050438,-2194.54,0.00013698,2]
[380044502,1755501050448,-2194.54,0.00013698,2]
[380044503,1755501050457,-2194.54,0.00013698,2]
[380044504,1755501050467,-2194.54,0.00013698,2]
[380044505,1755501050476,-2194.54,0.00013698,2]
[380044506,1755501050486,-2194.54,0.00013698,2]
[380044507,1755501050495,-2194.70248938,0.00013698,2]
[380044508,1755501050504,-400.0,0.00013698,2]
[380044509,1755501050513,-400.0,0.00013698,2]
[380044510,1755501050522,-400.0,0.00013698,2]
[380044511,1755501050532,-1521.91,0.00013698,2]
[380044512,1755501050541,-993.23,0.00013698,2]
[380044513,1755501050550,-542.93,0.00013698,2]
[380044514,1755501050559,-400.0,0.00013698,2]
[380044515,1755501050568,-642.5,0.00013698,2]
[380044516,1755501050577,-2270.46,0.00013698,2]
[380044517,1755501050586,-400.0,0.00013698,2]
[380044518,1755501050595,-309.65599826,0.00013698,2]
[380044519,1755501050604,-400.0,0.00013698,2]
[380044520,1755501050613,-400.0,0.00013698,2]
[380044521,1755501050623,-1443.42,0.00013698,2]
[380044522,1755501050634,-400.0,0.00013698,2]
[380044523,1755501050643,-644.52,0.00013698,2]
[380044524,1755501050653,-400.0,0.00013698,2]
[380044525,1755501050663,-400.0,0.00013698,2]
[380044526,1755501050672,-169.24177047,0.00013698,2]
[380044527,1755501050681,-199.28561783,0.00013698,2]
[380044528,1755501050690,-627.97,0.00013698,2]
[380044529,1755501050699,-1008.53,0.00013698,2]
[380044530,1755501050708,-466.65,0.00013698,2]
[380044531,1755501050717,-1008.53,0.00013698,2]
[380044532,1755501050726,-1008.53,0.00013698,2]
[380044533,1755501050735,-1008.53,0.00013698,2]
[380044534,1755501050744,-400.0,0.00013698,2]
[380044535,1755501050753,-412.74903708,0.00013698,2]
[380044536,1755501050764,-1008.53,0.00013698,2]
[380044537,1755501050773,-1008.53,0.00013698,2]
[380044538,1755501050782,-1008.53,0.00013698,2]
[380044539,1755501050791,-1008.53,0.00013698,2]
[380044540,1755501050801,-1008.53,0.00013698,2]
[380044541,1755501050811,-1008.53,0.00013698,2]
[380044542,1755501050820,-1008.53,0.00013698,2]
[380044543,1755501050834,-1008.53,0.00013698,2]
[380044544,1755501050844,-1008.53,0.00013698,2]
[380044545,1755501050853,-1008.53,0.00013698,2]
[380044546,1755501050862,-1008.53,0.00013698,2]
[380044547,1755501050871,-1008.53,0.00013698,2]
[380044548,1755501050881,-1008.53,0.00013698,2]
[380044549,1755501050890,-1008.53,0.00013698,2]
[380044550,1755501050899,-1008.53,0.00013698,2]
[380044551,1755501050908,-1008.53,0.00013698,2]
[380044552,1755501050918,-1008.53,0.00013698,2]
[380044553,1755501050927,-1008.53,0.00013698,2]
[380044554,1755501050936,-1008.53,0.00013698,2]
[380044555,1755501050945,-1008.57009216,0.00013698,2]
[380044556,1755501050953,-400.0,0.00013698,2]
[380044557,1755501050963,-1778.93,0.00013698,2]
[380044558,1755501050972,-737.5,0.00013698,2]
[380044559,1755501050982,-2235.89,0.00013698,2]
[380044560,1755501050991,-2203.57,0.00013698,2]
[380044561,1755501051000,-2657.95,0.00013698,2]
[380044562,1755501051009,-400.0,0.00013698,2]
[380044563,1755501051018,-400.0,0.00013698,2]
[380044564,1755501051028,-402.71570639,0.00013698,2]
[380044565,1755501051037,-472.9,0.00013698,2]
[380044566,1755501051046,-400.0,0.00013698,2]
[380044567,1755501051055,-400.0,0.00013698,2]
[380044568,1755501051065,-673.01,0.00013698,2]
[380044569,1755501051074,-794.5,0.00013698,2]
[380044570,1755501051083,-400.0,0.00013698,2]
[380044571,1755501051092,-400.0,0.00013698,2]
[380044572,1755501051101,-1256.66,0.00013698,2]
[380044573,1755501051111,-400.0,0.00013698,2]
[380044574,1755501051120,-400.0,0.00013698,2]
[380044575,1755501051130,-2082.76,0.00013698,2]
[380044576,1755501051139,-400.38939372,0.00013698,2]
[380044577,1755501051148,-1300.52,0.00013698,2]
[380044578,1755501051157,-933.62,0.00013698,2]
[380044579,1755501051167,-400.0,0.00013698,2]
[380044580,1755501051176,-910.46,0.00013698,2]
[380044581,1755501051185,-400.0,0.00013698,2]
[380044582,1755501051194,-189.58080053,0.00013698,2]
[380044583,1755501051203,-877.9,0.00013698,2]
[380044584,1755501051212,-1229.38,0.00013698,2]
[380044585,1755501051221,-400.0,0.00013698,2]
[380044586,1755501051230,-748.86,0.00013698,2]
[380044587,1755501051239,-400.0,0.00013698,2]
[380044588,1755501051248,-400.0,0.00013698,2]
[380044589,1755501051257,-974.43,0.00013698,2]
[380044590,1755501051267,-936.96,0.00013698,2]
[380044591,1755501051276,-400.0,0.00013698,2]
[380044592,1755501051285,-400.0,0.00013698,2]
[380044593,1755501051294,-1224.72,0.00013698,2]
[380044594,1755501051304,-400.0,0.00013698,2]
[380044595,1755501051313,-400.0,0.00013698,2]
[380044596,1755501051322,-400.0,0.00013698,2]
[380044597,1755501051331,-400.0,0.00013698,2]
[380044598,1755501051341,-400.0,0.00013698,2]
[380044599,1755501051350,-400.0,0.00013698,2]
[380044600,1755501051359,-400.0,0.00013698,2]
[380044601,1755501051368,-400.0,0.00013698,2]
[380044602,1755501051377,-400.0,0.00013698,2]
[380044603,1755501051387,-400.0,0.00013698,2]
[380044604,1755501051396,-959.59,0.00013698,2]
[380044605,1755501051406,-401.46938008,0.00013698,2]
[380044606,1755501051415,-400.0,0.00013698,2]
[380044607,1755501051424,-2389.86,0.00013698,2]
[380044608,1755501051434,-400.60670826,0.00013698,2]
[380044609,1755501051443,-884.79,0.00013698,2]
[380044610,1755501051453,-603.9,0.00013698,2]
[380044611,1755501051462,-400.0,0.00013698,2]
[380044612,1755501051472,-400.0,0.00013698,2]
[380044613,1755501051482,-559.23,0.00013698,2]
[380044614,1755501051491,-400.0,0.00013698,2]
[380044615,1755501051501,-393.96,0.00013698,2]
[380044616,1755501051510,-1105.13,0.00013698,2]
[380044617,1755501051520,-400.0,0.00013698,2]
[380044618,1755501051530,-400.0,0.00013698,2]
[380044619,1755501051540,-327.18270766,0.00013698,2]
[380044620,1755501051549,-536.36,0.00013698,2]
[380044621,1755501051559,-400.0,0.00013698,2]
[380044622,1755501051569,-400.0,0.00013698,2]
[380044623,1755501051579,-400.0,0.00013698,2]
[380044624,1755501051589,-989.04,0.00013698,2]
[380044625,1755501051598,-400.0,0.00013698,2]
[380044626,1755501051608,-400.0,0.00013698,2]
[380044627,1755501051618,-400.0,0.00013698,2]
[380044628,1755501051627,-1436.3,0.00013698,2]
[380044629,1755501051636,-462.95,0.00013698,2]
[380044630,1755501051646,-762.93,0.00013698,2]
[380044631,1755501051656,-400.0,0.00013698,2]
[380044632,1755501051666,-2938.95,0.00013698,2]
[380044633,1755501051675,-536.69,0.00013698,2]
[380044634,1755501051684,-1525.29,0.00013698,2]
[380044635,1755501051693,-400.0,0.00013698,2]
[380044636,1755501051703,-400.0,0.00013698,2]
[380044637,1755501051712,-2048.96,0.00013698,2]
[380044638,1755501051722,-400.0,0.00013698,2]
[380044639,1755501051856,-1077.99,0.00013698,2]
[380044640,1755501051867,-400.0,0.00013698,2]
[380044641,1755501051877,-400.0,0.00013698,2]
[380044642,1755501051886,-490.75239289,0.00013698,2]
[380044643,1755501051895,-400.0,0.00013698,2]
[380044644,1755501051905,-1175.68,0.00013698,2]
[380044645,1755501051915,-400.0,0.00013698,2]
[380044646,1755501051924,-400.0,0.00013698,2]
[380044647,1755501051934,-1165.83,0.00013698,2]
[380044648,1755501051943,-400.0,0.00013698,2]
[380044649,1755501051952,-400.0,0.00013698,2]
[380044650,1755501051961,-400.0,0.00013698,2]
[380044651,1755501051971,-895.29,0.00013698,2]
[380044652,1755501051980,-541.74,0.00013698,2]
[380044653,1755501051990,-400.0,0.00013698,2]
[380044654,1755501051999,-723.05,0.00013698,2]
[380044655,1755501052009,-400.0,0.00013698,2]
[380044656,1755501052018,-712.79,0.00013698,2]
[380044657,1755501052027,-400.0,0.00013698,2]
[380044658,1755501052037,-389.77627901,0.00013698,2]
[380044659,1755501052046,-1135.72,0.00013698,2]
[380044660,1755501052058,-1364.26,0.00013698,2]
[380044661,1755501052069,-1462.65,0.00013698,2]
[380044662,1755501052078,-1454.62,0.00013698,2]
[380044663,1755501052089,-1895.77,0.00013698,2]
[380044664,1755501052099,-4182.82,0.00013698,2]
[380044665,1755501052108,-400.0,0.00013698,2]
[380044666,1755501052118,-400.0,0.00013698,2]
[380044667,1755501052127,-400.0,0.00013698,2]
[380044668,1755501052136,-400.0,0.00013698,2]
[380044669,1755501052146,-414.74,0.00013698,2]
[380044670,1755501052155,-400.0,0.00013698,2]
[380044671,1755501052165,-400.0,0.00013698,2]
[380044672,1755501052175,-400.0,0.00013698,2]
[380044673,1755501052187,-699.54,0.00013698,2]
[380044674,1755501052201,-465.98,0.00013698,2]
[380044675,1755501052211,-450.62,0.00013698,2]
[380044676,1755501052220,-1626.31,0.00013698,2]
[380044677,1755501052231,-400.0,0.00013698,2]
[380044678,1755501052240,-1034.83,0.00013698,2]
[380044679,1755501052250,-400.0,0.00013698,2]
[380044680,1755501052260,-2489.85,0.00013698,2]
[380044681,1755501052270,-584.14,0.00013698,2]
[380044682,1755501052281,-400.0,0.00013698,2]
[380044683,1755501052291,-400.0,0.00013698,2]
[380044684,1755501052300,-855.77,0.00013698,2]
[380044685,1755501052311,-400.0,0.00013698,2]
[380044686,1755501052321,-400.0,0.00013698,2]
[380044687,1755501052331,-560.8,0.00013698,2]
[380044688,1755501052340,-603.27,0.00013698,2]
[380044689,1755501052350,-1381.26,0.00013698,2]
[380044690,1755501052360,-400.0,0.00013698,2]
[380044691,1755501052369,-400.0,0.00013698,2]
[380044692,1755501052379,-400.0,0.00013698,2]
[380044693,1755501052388,-2463.58,0.00013698,2]
[380044694,1755501052399,-457.28,0.00013698,2]
[380044695,1755501052408,-2767.23,0.00013698,2]
[380044696,1755501052418,-400.0,0.00013698,2]
[380044697,1755501052427,-1269.83,0.00013698,2]
[380044698,1755501052437,-511.37565606,0.00013698,2]
[380044699,1755501052448,-400.0,0.00013698,2]
[380044700,1755501052460,-400.0,0.00013698,2]
[380044701,1755501052469,-400.0,0.00013698,2]
[380044702,1755501052479,-986.45,0.00013698,2]
[380044703,1755501052489,-1031.77,0.00013698,2]
[380044704,1755501052498,-2283.33,0.00013698,2]
[380044705,1755501052509,-400.0,0.00013698,2]
[380044706,1755501052518,-400.0,0.00013698,2]
[380044707,1755501052528,-1307.1,0.00013698,2]
[380044708,1755501052539,-400.0,0.00013698,2]
[380044709,1755501052550,-1402.09,0.00013698,2]
[380044710,1755501052561,-3193.71,0.00013698,2]
[380044711,1755501052571,-1960.36,0.00013698,2]
[380044712,1755501052582,-484.03,0.00013698,2]
[380044713,1755501052592,-400.0,0.00013698,2]
[380044714,1755501052601,-400.0,0.00013698,2]
[380044715,1755501052611,-400.0,0.00013698,2]
[380044716,1755501052621,-400.0,0.00013698,2]
[380044717,1755501052631,-400.0,0.00013698,2]
[380044718,1755501052641,-634.98,0.00013698,2]
[380044719,1755501052651,-4084.4,0.00013698,2]
[380044720,1755501052661,-1766.29,0.00013698,2]
[380044721,1755501052671,-2281.5,0.00013698,2]
[380044722,1755501052680,-1573.12,0.00013698,2]
[380044723,1755501052690,-400.0,0.00013698,2]
[380044724,1755501052700,-1500.01,0.00013698,2]
[380044725,1755501052710,-291.35647762,0.00013698,2]
[380044726,1755501052719,-578.14,0.00013698,2]
[380044727,1755501052729,-744.28,0.00013698,2]
[380044728,1755501052738,-400.0,0.00013698,2]
[380044729,1755501052747,-400.0,0.00013698,2]
[380044730,1755501052757,-4616.31,0.00013698,2]
[380044731,1755501052767,-805.45,0.00013698,2]
[380044732,1755501052776,-724.24,0.00013698,2]
[380044733,1755501052785,-414.47278373,0.00013698,2]
[380044734,1755501052796,-400.0,0.00013698,2]
[380044735,1755501052806,-526.98,0.00013698,2]
[380044736,1755501052816,-400.0,0.00013698,2]
[380044737,1755501052829,-2798.25,0.00013698,2]
[380044738,1755501052838,-400.0,0.00013698,2]
[380044739,1755501052848,-400.0,0.00013698,2]
[380044740,1755501052857,-400.0,0.00013698,2]
[380044741,1755501052866,-2802.22,0.00013698,2]
[380044742,1755501052876,-400.0,0.00013698,2]
[380044743,1755501052885,-1083.74,0.00013698,2]
[380044744,1755501052895,-791.07,0.00013698,2]
[380044745,1755501052905,-400.0,0.00013698,2]
[380044746,1755501052916,-400.0,0.00013698,2]
[380044747,1755501052940,-2710.3,0.00013698,2]
[380044748,1755501052954,-1267.25,0.00013698,2]
[380044749,1755501052975,-553.72,0.00013698,2]
[380044750,1755501053008,-400.0,0.00013698,2]
[380044751,1755501053020,-999.2,0.00013698,2]
[380044752,1755501053030,-400.0,0.00013698,2]
[380044753,1755501053041,-400.0,0.00013698,2]
[380044754,1755501053051,-400.0,0.00013698,2]
[380044755,1755501053061,-400.0,0.00013698,2]
[380044756,1755501053071,-435.47,0.00013698,2]
[380044757,1755501053081,-852.94,0.00013698,2]
[380044758,1755501053092,-500.0,0.00013698,2]
[380044759,1755501053102,-400.0,0.00013698,2]
[380044760,1755501053111,-400.0,0.00013698,2]
[380044761,1755501053122,-490.0,0.00013698,2]
[380044762,1755501053132,-400.0,0.00013698,2]
[380044763,1755501053142,-606.99,0.00013698,2]
[380044764,1755501053152,-1616.99,0.00013698,2]
[380044765,1755501053162,-400.0,0.00013698,2]
[380044766,1755501053173,-400.0,0.00013698,2]
[380044767,1755501053183,-4602.71,0.00013698,2]
[380044768,1755501053192,-2976.43,0.00013698,2]
[380044769,1755501053202,-400.0,0.00013698,2]
[380044770,1755501053212,-3591.37,0.00013698,2]
[380044771,1755501053222,-400.0,0.00013698,2]
[380044772,1755501053232,-5000.0,0.00013698,2]
[380044773,1755501053242,-400.0,0.00013698,2]
[380044774,1755501053252,-400.0,0.00013698,2]
[380044775,1755501053261,-400.0,0.00013698,2]
[380044776,1755501053271,-401.90939877,0.00013698,2]
[380044777,1755501053281,-624.28,0.00013698,2]
[380044778,1755501053291,-4036.07,0.00013698,2]
[380044779,1755501053301,-400.0,0.00013698,2]
[380044780,1755501053310,-400.0,0.00013698,2]
[380044781,1755501053320,-408.45066045,0.00013698,2]
[380044782,1755501053330,-2053.45,0.00013698,2]
[380044783,1755501053341,-400.0,0.00013698,2]
[380044784,1755501053350,-400.0,0.00013698,2]
[380044785,1755501053360,-400.0,0.00013698,2]
[380044786,1755501053369,-400.0,0.00013698,2]
[380044787,1755501053379,-400.0,0.00013698,2]
[380044788,1755501053390,-3125.77,0.00013698,2]
[380044789,1755501053400,-400.0,0.00013698,2]
[380044790,1755501053410,-400.0,0.00013698,2]
[380044791,1755501053420,-400.0,0.00013698,2]
[380044792,1755501053430,-400.16915097,0.00013698,2]
[380044793,1755501053439,-400.0,0.00013698,2]
[380044794,1755501053449,-1115.57,0.00013698,2]
[380044795,1755501053460,-400.0,0.00013698,2]
[380044796,1755501053470,-400.0,0.00013698,2]
[380044797,1755501053480,-535.86009475,0.00013698,2]
[380044798,1755501053490,-400.0,0.00013698,2]
[380044799,1755501053499,-400.0,0.00013698,2]
[380044800,1755501053509,-1199.22,0.00013698,2]
[380044801,1755501053519,-400.0,0.00013698,2]
[380044802,1755501053529,-2530.92,0.00013698,2]
[380044803,1755501053538,-400.0,0.00013698,2]
[380044804,1755501053548,-400.0,0.00013698,2]
[380044805,1755501053558,-1199.22,0.00013698,2]
[380044806,1755501053567,-1199.22,0.00013698,2]
[380044807,1755501053577,-400.98855715,0.00013698,2]
[380044808,1755501053588,-1199.22,0.00013698,2]
[380044809,1755501053597,-1199.22,0.00013698,2]
[380044810,1755501053607,-400.0,0.00013698,2]
[380044811,1755501053617,-1199.22,0.00013698,2]
[380044812,1755501053627,-400.0,0.00013698,2]
[380044813,1755501053636,-1199.22,0.00013698,2]
[380044814,1755501053645,-400.0,0.00013698,2]
[380044815,1755501053655,-1199.22,0.00013698,2]
[380044816,1755501053664,-403.47741603,0.00013698,2]
[380044817,1755501053674,-1199.22,0.00013698,2]
[380044818,1755501053684,-415.89,0.00013698,2]
[380044819,1755501053693,-400.0,0.00013698,2]
[380044820,1755501053703,-448.37,0.00013698,2]
[380044821,1755501053712,-1199.22,0.00013698,2]
[380044822,1755501053722,-1199.22,0.00013698,2]
[380044823,1755501053732,-1199.22,0.00013698,2]
[380044824,1755501053741,-400.0,0.00013698,2]
[380044825,1755501053750,-1199.22,0.00013698,2]
[380044826,1755501053760,-400.0,0.00013698,2]
[380044827,1755501053770,-400.0,0.00013698,2]
[380044828,1755501053780,-1199.22,0.00013698,2]
[380044829,1755501053789,-1199.22,0.00013698,2]
[380044830,1755501053798,-400.0,0.00013698,2]
[380044831,1755501053808,-1199.22,0.00013698,2]
[380044832,1755501053817,-1199.22,0.00013698,2]
[380044833,1755501053828,-1199.22,0.00013698,2]
[380044834,1755501053840,-1199.22,0.00013698,2]
[380044835,1755501053850,-1199.22,0.00013698,2]
[380044836,1755501053859,-1199.22,0.00013698,2]
[380044837,1755501053869,-1073.68,0.00013698,2]
[380044838,1755501053879,-3185.52,0.00013698,2]
[380044839,1755501053888,-1199.22,0.00013698,2]
[380044840,1755501053898,-400.0,0.00013698,2]
[380044841,1755501053909,-1199.22,0.00013698,2]
[380044842,1755501053919,-1199.26565551,0.00013698,2]
[380044843,1755501053928,-400.0,0.00013698,2]
[380044844,1755501053937,-400.0,0.00013698,2]
[380044845,1755501053947,-400.0,0.00013698,2]
[380044846,1755501053956,-1265.58,0.00013698,2]
[380044847,1755501053965,-400.0,0.00013698,2]
[380044848,1755501053975,-400.0,0.00013698,2]
[380044849,1755501053984,-400.0,0.00013698,2]
[380044850,1755501053994,-400.0,0.00013698,2]
[380044851,1755501054003,-400.0,0.00013698,2]
[380044852,1755501054013,-719.11,0.00013698,2]
[380044853,1755501054022,-400.0,0.00013698,2]
[380044854,1755501054031,-400.0,0.00013698,2]
[380044855,1755501054042,-400.0,0.00013698,2]
[380044856,1755501054412,-400.0,0.00013698,2]
[380044857,1755501054423,-400.0,0.00013698,2]
[380044858,1755501054434,-400.0,0.00013698,2]
[380044859,1755501054444,-416.66,0.00013698,2]
[380044860,1755501054456,-1479.41,0.00013698,2]
[380044861,1755501054466,-1058.21,0.00013698,2]
[380044862,1755501054476,-1257.29,0.00013698,2]
[380044863,1755501054485,-490.0,0.00013698,2]
[380044864,1755501054495,-1688.08,0.00013698,2]
[380044865,1755501054504,-454.96,0.00013698,2]
[380044866,1755501054514,-400.0,0.00013698,2]
[380044867,1755501054524,-3901.81,0.00013698,2]
[380044868,1755501054533,-400.0,0.00013698,2]
[380044869,1755501054542,-400.0,0.00013698,2]
[380044870,1755501054552,-400.0,0.00013698,2]
[380044871,1755501054561,-2082.18,0.00013698,2]
[380044872,1755501054570,-400.0,0.00013698,2]
[380044873,1755501054580,-400.0,0.00013698,2]
[380044874,1755501054590,-562.11,0.00013698,2]
[380044875,1755501054600,-1593.36,0.00013698,2]
[380044876,1755501054609,-400.0,0.00013698,2]
[380044877,1755501054619,-1248.62,0.00013698,2]
[380044878,1755501054628,-1077.24,0.00013698,2]
[380044879,1755501054638,-556.06,0.00013698,2]
[380044880,1755501054647,-400.0,0.00013698,2]
[380044881,1755501054656,-400.0,0.00013698,2]
[380044882,1755501054666,-400.0,0.00013698,2]
[380044883,1755501054676,-2363.32,0.00013698,2]
[380044884,1755501054685,-628.48,0.00013698,2]
[380044885,1755501054695,-683.62,0.00013698,2]
[380044886,1755501054704,-666.13,0.00013698,2]
[380044887,1755501054714,-2472.61,0.00013698,2]